Cogmind - Beta 16.1 @@@ ROGUE MODE // 2026.04.06 @ 11:00:40 Player: Rocket Result: Destroyed by YI-UF0 with YI-UF0's Doublenader Performance ------------- Evolutions (0) 0 Regions Visited (2) 400 Robots Destroyed (13) 65 Value Destroyed (229) 229 Prototype IDs (0) 0 Alien Tech Used (0) 0 Bonus (0) 0 TOTAL SCORE: 694 Bonus ------- None Cogmind --------- Core Integrity 0/250 Matter 300/300 Energy 250/250 System Corruption 2% Temperature Cool (0) Movement Treading (160) Location -10/Mines Parts ------- > --- POWER (1) -------- Ion Engine > --- PROPULSION (2) --- Light Treads Light Treads > --- UTILITY (2) ------ Targeting Computer Tractor Beam > --- WEAPON (2) ------- Assault Rifle > --- INVENTORY (5) ---- Ion Engine Light Treads Structural Scanner Propulsion Shielding Peak State ------------ > --- POWER ------------ Ion Engine > --- PROPULSION ------- Light Treads Light Treads > --- UTILITY ---------- Large Storage Unit Seismic Detector > --- WEAPON ----------- Assault Rifle Light Assault Rifle > --- INVENTORY -------- Ion Engine Light Treads Aluminum Leg Heat Sink High-capacity Matter Pod Structural Scanner Propulsion Shielding Tractor Beam Assault Rifle Light Cannon [Rating: 8] Favorites ----------- Power Ion Engine Engine Ion Engine Propulsion Light Treads Treads Light Treads Leg Aluminum Leg Utility Seismic Detector Device Seismic Detector Storage Small Storage Unit Processor Targeting Computer Protection Propulsion Shielding Weapon Light Cannon Energy Gun EM Pulse Gun Ballistic Gun Assault Rifle Ballistic Cannon Light Cannon Build | -11 -10 -10 ------- Run | Yrd Mat Min Slots Evolved . | . . . Power . | . . . Propulsion . | . . . Utility . | . . . Weapon . | . . . Parts Attached 18 | 7 6 5 Power 1 | 1 . . Engine 1 | 1 . . Core . | . . . Reactor . | . . . Propulsion 4 | 2 2 . Treads 2 | . 2 . Leg 2 | 2 . . Wheel . | . . . Hover . | . . . Flight . | . . . Utility 7 | 2 3 2 Device 3 | 1 1 1 Storage 2 | 1 1 . Processor 1 | . . 1 Hackware . | . . . Protection 1 | . 1 . Artifact . | . . . Weapon 6 | 2 1 3 Energy Gun 1 | 1 . . Energy Cannon . | . . . Ballistic Gun 3 | 1 1 1 Ballistic Cannon 2 | . . 2 Launcher . | . . . Special Weapon . | . . . Impact Weapon . | . . . Slashing Weapon . | . . . Piercing Weapon . | . . . Special Melee Weapon . | . . . Unidentified Prototypes . | . . . Parts Lost 4 | . 2 2 Power . | . . . Propulsion . | . . . Utility 1 | . 1 . Weapon 3 | . 1 2 Highest Loss Streak 2 | . 2 2 To Critical Strikes . | . . . Average Backups 6 | 2 8 5 Power . | . 1 1 Propulsion 1 | 1 2 1 Utility 2 | . 3 2 Weapon 1 | . 2 . Tool/Special . | . . . Unused Backups 7 | . 1 6 Power 1 | . . 1 Propulsion 1 | . . 1 Utility 4 | . . 4 Weapon 1 | . 1 . Tool/Special . | . . . Average Slot Usage (%) 97 | . 96 97 Engine 13 | . 13 14 Treads 16 | . 7 28 Leg 12 | . 21 . Device 7 | . 11 1 Storage 8 | . 14 . Processor 5 | . . 13 Protection 6 | . 1 12 Ballistic Gun 14 | . 24 2 Ballistic Cannon 10 | . . 23 Peak Build Rating 8 | 7 8 7 Average Rating 6 | 4 6 6 On Entrance 4 | . 7 7 Avg Prop Armor Cover (%) . | . . . Naked Turns . | . . . Heaviest Build 32 | 15 29 32 Greatest Support 40 | 20 40 40 Greatest Overweight (x) 1 | . 1 . Average Overweight (x) . | . . . Largest Inventory Capacity 15 | 8 15 15 Average Capacity 8 | 7 10 5 Most Carried 10 | 3 10 10 Average Carried 6 | 2 8 5 Final Capacity 15 | 8 15 5 Final Carried 10 | 3 10 4 Class Distribution -------------------- 100% | Mutant Dominant Class ---------------- Mutant | -10/Materials Mutant | -10/Mines Resources | -11 -10 -10 ----------- Run | Yrd Mat Min Matter Collected 748 | 210 167 371 Remotely 255 | . . 255 Salvage Created 386 | 30 309 47 Parts 26 | 5 21 . Haulers Intercepted 1 | . 1 . Recyclers Shooed . | . . . Parts Field Recycled . | . . . Retrieved Matter . | . . . Parts Self-Destructed . | . . . Prevented . | . . . Parts Restored . | . . . Kills | -11 -10 -10 ------- Run | Yrd Mat Min Combat Hostiles Destroyed 18 | . 10 8 Guns 10 | . 8 2 Cannons 6 | . . 6 AOE 2 | . 2 . Classes Destroyed 6 | 1 4 1 Worker 1 | . 1 . Tunneler 1 | 1 . . Hauler 1 | . 1 . Swarmer 6 | . 6 . Grunt 4 | . 4 . Assembled 8 | . . 8 Best Kill Streak 6 | 1 4 6 Combat Bots Only 6 | . 4 6 Max Kills in Single Turn 2 | 1 2 1 Gunslinging . | . . . Exploded 2 | . 2 . Melee . | . . . Uniques/NPCs Destroyed . | . . . Combat | -11 -10 -10 -------- Run | Yrd Mat Min Hostile Shots Fired 106 | . 65 41 Missed 21 | . 13 8 Hits 85 | . 52 33 Melee 6 | . . 6 Projectile 79 | . 52 27 AOE 7 | . . 7 Critical Strikes 4 | . 3 1 Part Disruptions 3 | . . 3 Actively Blocked 2 | . . 2 Damage Taken 1108 | . 496 612 Core 256 | . 120 136 Absorbed by Shields . | . . . Redirected to Shielding 18 | . . 18 Core Remaining (%) 100 | 100 . . Volleys Fired 67 | 1 41 25 Largest 2 | 2 2 2 Hottest 60 | 60 40 60 Shots Fired 118 | 2 75 41 Gun 86 | 2 75 9 Cannon 32 | . . 32 Launcher . | . . . Special . | . . . Kinetic 117 | 1 75 41 Thermal . | . . . Explosive . | . . . Electromagnetic 1 | 1 . . Robot Hit Streak 8 | 1 8 5 Robot Miss Streak 6 | . 6 2 Penetration Max . | . . . Secondary Targets 2 | . 2 . Max Gunslinging Chain 1 | . 1 . Shots Hit Robots 57 | 1 33 23 Core Hits 34 | 1 19 14 Critical Kills . | . . . Critical Parts Destroyed 1 | . 1 . Critical Strikes 1 | . 1 . Destroy 1 | . 1 . Melee Attacks . | . . . Impact . | . . . Slashing . | . . . Piercing . | . . . Sneak Attacks . | . . . Combat Hostiles . | . . . Follow-up Attacks . | . . . Damage Inflicted 943 | 23 516 404 Guns 454 | 23 347 84 Cannons 320 | . . 320 Explosions 169 | . 169 . Melee . | . . . Ramming . | . . . Kinetic 761 | 10 347 404 Thermal . | . . . Explosive 169 | . 169 . Electromagnetic 13 | 13 . . Impact . | . . . Slashing . | . . . Piercing . | . . . Highest Corruption 2 | . 2 2 Average Corruption 2 | . 2 2 Corruption Purged . | . . . Corruption Blocked . | . . . Effects 16 | . 9 7 Message Errors 3 | . 2 1 Matter Fused 3 | . 1 2 Heat Flow Errors 3 | . 1 2 Energy Discharges 1 | . . 1 Data Loss (minor) 1 | . . 1 Data Loss (major) 2 | . 2 . Misfires 2 | . 2 . Alerts 1 | . 1 . Overload Shots . | . . . Overflow Damage . | . . . Projectiles . | . . . Explosions . | . . . Melee . | . . . Knockbacks 4 | . . 4 Impact . | . . . Kinetic 4 | . . 4 Secondary . | . . . Self-Inflicted Damage . | . . . Shots . | . . . Rammed . | . . . Targets Rammed . | . . . Kicked . | . . . Crushed . | . . . Highest Temperature 269 | . 164 269 Average Temperature 130 | . 49 159 Received Heat Transfer 425 | . 165 260 Effects 2 | . . 2 Interference 2 | . . 2 Siege Activations . | . . . Martial Activations . | . . . Shielding Activations . | . . . Robots Disrupted . | . . . Combat Hostiles . | . . . Robots Corrupted . | . . . Combat Hostiles . | . . . Parts Fried . | . . . Impact Corruptions . | . . . Robots Melted . | . . . Combat Hostiles . | . . . Parts Melted . | . . . Heat Transferred . | . . . Parts Sabotaged . | . . . Parts Stolen . | . . . Parts Stripped . | . . . Power Chain Reactions . | . . . Alert | -11 -10 -10 ------- Run | Yrd Mat Min Maximum Alert Level . | . . . Low Security (%) 100 | 100 100 100 Level 1 . | . . . Level 2 . | . . . Level 3 . | . . . Level 4 . | . . . Level 5 . | . . . High Security . | . . . Max Security . | . . . Peak Influence 125 | 5 125 27 Initial 27 | . . 27 Average 42 | . 78 1 Influence Increases 358 | 5 353 . Destroy 0b10 Robot/C 200 | . 200 . Destroy 0b10 Robot/NC 15 | 5 10 . Destroy Leader 52 | . 52 . Successful Hack 11 | . 11 . Disable Machine 15 | . 15 . Destroy Structure 20 | . 20 . Lose Combat Pursuer 45 | . 45 . Influence Decreases 358 | 5 282 71 Entered New Map 44 | . . 44 Time Decay 294 | 5 262 27 Lost Part 20 | . 20 . Squads Dispatched 2 | . 2 . Investigation 1 | . 1 . Extermination . | . . . Reinforcement 1 | . 1 . Assault . | . . . Garrison . | . . . Intercept . | . . . Searches Triggered . | . . . Construction Impeded . | . . . Haulers Reinforced . | . . . Active Scanning Responses . | . . . Cargo Convoy Interrupts . | . . . Stealth | -11 -10 -10 --------- Run | Yrd Mat Min Distress Signals 4 | . 3 1 Communications Jammed . | . . . Distress Signals . | . . . Times Spotted 28 | . 19 9 Peak Tracking Total 5 | . 5 5 Tactical Retreats 2 | . 2 . Traps | -11 -10 -10 ------- Run | Yrd Mat Min Traps Triggered 3 | . 3 . Indirectly . | . . . Trap Hack Attempts . | . . . Triggered . | . . . Disarmed . | . . . Reprogrammed . | . . . Reused . | . . . Traps Extracted . | . . . Installed . | . . . Triggered . | . . . Machines | -11 -10 -10 ---------- Run | Yrd Mat Min Machines Disabled 1 | . 1 . Max in Single Turn 1 | . 1 . Machines Repaired . | . . . Machines Dismantled . | . . . Machines Sabotaged . | . . . Overloaded Fab Kills . | . . . Hacking | -11 -10 -10 --------- Run | Yrd Mat Min Machines Accessed 2 | . 2 . Terminals 2 | . 2 . Fabricators . | . . . Repair Stations . | . . . Recycling Units . | . . . Scanalyzers . | . . . Garrison Access . | . . . Total Hacks 6 | . 6 . Successful 3 | . 3 . Failed 3 | . 3 . Catastrophic . | . . . Database Lockouts . | . . . Manual 6 | . 6 . Terminals 6 | . 6 . Fabricators . | . . . Repair Stations . | . . . Recycling Units . | . . . Scanalyzers . | . . . Garrison Access . | . . . Terminal Hacks 1 | . 1 . Robot Analysis 1 | . 1 . Fabricator Hacks . | . . . Repair Station Hacks . | . . . Recycling Unit Hacks . | . . . Scanalyzer . | . . . Garrison Access Hacks . | . . . Unauthorized Hacks 2 | . 2 . Terminals 2 | . 2 . Botnet 2 | . 2 . Fabricators . | . . . Repair Stations . | . . . Recycling Units . | . . . Scanalyzers . | . . . Garrison Access . | . . . Data Cores Recovered . | . . . Used . | . . . Hacking Detections 2 | . 2 . Full Trace Events . | . . . Feedback Events . | . . . Feedback Blocked . | . . . Robot Schematics Acquired . | . . . Robots Built . | . . . Authchips . | . . . Time . | . . . Total Robot Build Rating . | . . . Part Schematics Acquired . | . . . Parts Built . | . . . Authchips . | . . . Time . | . . . Total Part Build Rating . | . . . Part Studies Acquired . | . . . Parts Repaired . | . . . Time . | . . . Parts Recycled . | . . . Recycled Matter . | . . . Retrieved Matter . | . . . Retrieved Components . | . . . Parts Scanalyzed . | . . . Part Schematics Acquired . | . . . Parts Damaged . | . . . Bothacking | -11 -10 -10 ------------ Run | Yrd Mat Min Used RIF Installer . | . . . Robots Hacked . | . . . Non-combat . | . . . Combat . | . . . Robot Hacks Applied . | . . . Relay Couplers Released . | . . . Fabnet Peak Effective % . | . . . Robots Rewired . | . . . Allies Hacked . | . . . Hacks Repelled . | . . . Allies | -11 -10 -10 -------- Run | Yrd Mat Min Total Allies . | . . . Largest Group . | . . . Highest-Rated Group . | . . . Highest-Rated Ally . | . . . Total Orders . | . . . Ally Attacks . | . . . Total Damage . | . . . Kills . | . . . Allies Corrupted . | . . . Allies Melted . | . . . Intel | -11 -10 -10 ------- Run | Yrd Mat Min Active Infowar (turns) 541 | 8 533 . Seismic 541 | 8 533 . Robot Analysis Total 1 | . 1 . Derelict Logs Recovered . | . . . Drone Launches . | . . . Drone Recoveries . | . . . Exploration | -11 -10 -10 ------------- Run | Yrd Mat Min Turns Passed 1256 | 81 672 503 Spaces Moved 565 | 57 392 116 Core 5 | 5 . . Treads 193 | . 77 116 Legs 367 | 52 315 . Wheels . | . . . Hover . | . . . Flight . | . . . Fastest Speed 50 | 50 120 160 Average Speed 136 | 113 133 160 Slowest Speed 190 | 120 190 160 Overloaded Moves . | . . . Propulsion Burnouts . | . . . Robots Hopped . | . . . Potential Cave-ins . | . . . Cave-ins Triggered . | . . . Exploration Rate (%) 25 | 3 60 14 Regions Visited 2 Branch Regions 1 Pre-discovered Areas . | . . . Known Exits Taken . | . . . Unknown Exits Taken 2 | 1 1 . Scrap Searched . | . . . Spaces Dug . | . . . Terrain Destroyed 31 | . 31 . Melee . | . . . Projectile . | . . . AOE 31 | . 31 . Terrain Rammed . | . . . Walls Destroyed . | . . . Machines Disabled . | . . . Actions | -11 -10 -10 --------- Run | Yrd Mat Min Total 934 | 67 476 391 Wait 256 | . 21 235 Move 563 | 56 391 116 Hop . | . . . Pick Up 12 | 3 9 . Fast Attach 15 | 7 6 2 Attach 3 | . 1 2 Detach . | . . . Swap 7 | . 2 5 Drop 11 | . 5 6 Fire 67 | 1 41 25 Melee . | . . . Ram . | . . . Kick . | . . . Crush . | . . . Escape Stasis . | . . . Rewire . | . . . Trap . | . . . Miscellaneous . | . . . Route ------- -11/Scrapyard -10/Materials (discovered 3 exits: [*Mat x2] / [*Min]) -10/Mines (discovered 1 exit: [*Mat]) History --------- Turn | Location | Event 34 | -11/Scrapyard | Discovered new exit (range 16) 82 | -11/Scrapyard | Entered Materials 232 | -10/Materials | Discovered new exit (range 13) 317 | -10/Materials | Build established: Mutant 350 | -10/Materials | Discovered new exit (range 16) 566 | -10/Materials | Discovered new exit (range 15) 754 | -10/Materials | Entered Mines 755 | -10/Mines | Assembled infested the area 1054 | -10/Mines | Core integrity fell below 50% 1195 | -10/Mines | Discovered new exit (range 16) 1256 | -10/Mines | Core integrity fell below 20% 1257 | -10/Mines | Destroyed by YI-UF0 with YI-UF0's Doublenader Last Messages --------------- 01229_ System corrupted: Matter fused (-7). 01229_ U-05 Engineer lays Concrete. 01229_ K-01 Serf collects debris. 01230_ Acquired 7 matter. 01230_ U-05 Engineer lays Concrete. 01231_ K-01 Serf collects debris. 01231_ U-05 Engineer lays Concrete. 01235_ K-01 Serf collects debris. 01238_ U-05 Engineer builds a Wall. 01239_ K-01 Serf collects debris. 01243_ U-05 Engineer builds a Wall. 01248_ K-01 Serf collects debris. 01249_ YI-UF0: "WHAAM!" 01249_ U-05 Engineer destroyed. 01251_ YI-UF0: "KAPOW!" 01251_ K-01 Serf destroyed. 01252_ Acquired 3 matter. 01252_ The unstable cave ceiling collapses. 01254_ Acquired 3 matter. 01256_ The unstable cave ceiling collapses. Map ----- +----------------------------------------------------+ | | | | | | | | | | | | | | | | | | | | | | | | | | | | | | | | | | | | | | | ?????????????????????????????????????????????????? | | ????????????????????########?????????????????????? | | ????????????????????#=# #!=###?????????????####??? | | ???????????????????##! % % #????????????## ##?? | | ?????????????????### * %< #????????????# ##? | | ?????????????????#==*|% % #????????????# ## | | ?????????????????# #!= @ # ############### # | | ?????????????????# |= %! [!!!# | | ?????????????????# #* = ] *# | | ???????????? ## #! ##############!=!## | | ??????????????? !!=!### #????????????#####? | | ????????????? ! = =%;## #?????????????????? | | ???????????? | ;### #?????????????????? | | ???????????# % g = ### ### #####?????????????? | | ??????????# ! #?# ## ##????????????? | | ??????????#*# ??#% " #????????????? | | ?????????????? ###??# # #????????????? | | ?????????????? ?????#### ### #????????????? | | ?????????????????????????# #??# ##????????????? | | ?????????????????????????# #???####?????????????? | | ?????????????????????????# #????????????????????? | | ?????????????????????????# #????????????????????? | | ?????????????????????????# #????????????????????? | | ?????????????????????????# #????????????????????? | | ?????????????????????????# #????????????????????? | | ????????????????????????? #????????????????????? | | ????????????????????????? #????????????????????? | | ?????????????????????????####????????????????????? | | ?????????????????????????????????????????????????? | | ?????????????????????????????????????????????????? | | ?????????????????????????????????????????????????? | +----------------------------------------------------+ Best States ------------- Heat Dissipation 35 Energy Generation 10 Energy Capacity 250 Matter Stores 300 Matter Capacity 300 Sight Range 16 Terrain Scan Density 10 Propulsion Shielding 33 Evasion (%) 55 Targeting Accuracy 5 Recoil Reduction 2 Item Schematics ----------------- None Robot Schematics ------------------ None Fabricated ------------ Nothing Repaired ---------- Nothing Studied --------- None Alien Tech Used ----------------- None Achievements -------------- None Challenges ------------ None Game ------ Seed HugeDamperCutter Manual? 0 Play Time 00:10:39 Cumulative 135.9 hours Start 2026.04.06 @ 10:34:28 End 2026.04.06 @ 11:00:40 Sessions 1 Manual Loads 0 Difficulty Rogue Special Mode None Game No. 191 Rogue 191 Adventurer 0 Explorer 0 Win Type - Total 1 Types 1/0/0/0/0/0/0/0/0/0 Lore% 38 Gallery% 49 Achievement% 38 Wizard Run 0 Options --------- Layout 1 ASCII 0 Keyboard 0 Movement Mouse Keybinds 0 Fullscreen 2 Font 24/Smallcaps Map View 50x35 Zoom Use 36% Tactical HUD 1 Map Filters NONE Filters NONE Steam 1 RUN: c06aeeba-c3f9-4768-9423-0ecc4ebf055d